bitfinex-derivatives/quotes_BTCF0:USTF0_20250325
["timestamp","ask_amount","ask_price","bid_price","bid_amount"]
[1742932779160,0.1134924,88101.0,88100.0,0.14602466]
[1742932779161,0.4754524,88101.0,88100.0,0.14602466]
[1742932779363,0.4754524,88101.0,88100.0,0.1006]
[1742932779562,0.4754524,88101.0,88100.0,0.1]
[1742932779762,0.5640524,88101.0,88100.0,0.1]
[1742932780066,0.5640524,88101.0,88100.0,0.2134937]
[1742932780067,0.08476,88101.0,88100.0,0.2134937]
[1742932780267,0.001,88111.0,88105.0,0.0567432]
[1742932780459,0.001,88111.0,88110.0,0.3608]
[1742932780654,0.00084,88111.0,88110.0,1.95887992]
[1742932780857,0.2751439,88113.0,88112.0,0.1134782]
[1742932781057,0.2751439,88113.0,88112.0,0.41017168]
[1742932781363,0.0444,88122.0,88120.0,0.1134679]
[1742932781561,0.0444,88122.0,88121.0,0.0859]
[1742932781762,0.0444,88122.0,88121.0,1.63259348]
[1742932783165,0.0868,88122.0,88121.0,1.63259348]
[1742932783368,0.0878,88122.0,88121.0,1.63259348]
[1742932783663,0.2012654,88122.0,88121.0,1.54669348]
[1742932783869,0.2020654,88122.0,88121.0,0.04669348]
[1742932784068,0.2020654,88122.0,88121.0,0.04601348]
[1742932784264,0.1134782,88112.0,88111.0,0.00045397]
[1742932784471,0.2258782,88112.0,88111.0,0.00045397]
[1742932784968,0.2700782,88112.0,88111.0,0.00045397]
[1742932785262,0.1134886,88104.0,88103.0,8e-05]
[1742932785461,0.4750486,88104.0,88103.0,8e-05]
[1742932787062,0.00076,88104.0,88103.0,0.4743698]
[1742932787267,8e-05,88106.0,88105.0,0.1134873]
[1742932787472,0.0848,88118.0,88107.0,0.1134844]
[1742932787766,0.08564,88118.0,88115.0,0.3608]
[1742932787967,0.0848,88118.0,88116.0,0.08740997]
[1742932788169,0.0848,88118.0,88117.0,0.04560997]
[1742932788355,0.08556,88118.0,88116.0,0.0418]
[1742932788558,0.08556,88118.0,88116.0,0.0424]
[1742932788758,0.08556,88118.0,88117.0,1.5]
[1742932789169,0.08556,88118.0,88117.0,1.5006]
[1742932789366,0.08556,88118.0,88117.0,1.8614]
[1742932789367,0.04496,88118.0,88117.0,1.8614]
[1742932789565,0.0004,88120.0,88119.0,0.1134692]
[1742932789765,8e-05,88121.0,88119.0,0.41792895]
[1742932789969,0.00076,88121.0,88120.0,0.04560895]
[1742932790173,0.00076,88121.0,88120.0,1.54620895]
[1742932790665,0.00076,88121.0,88120.0,0.0006]
[1742932791067,0.00076,88121.0,88120.0,0.04620769]
[1742932791667,0.00076,88121.0,88118.0,0.0429]
[1742932791869,0.00076,88121.0,88118.0,0.0435]
[1742932792075,0.00076,88121.0,88118.0,0.0441]
[1742932792262,0.00076,88121.0,88119.0,0.3608]
[1742932792462,0.00076,88121.0,88119.0,0.3614]
[1742932792671,0.08456,88121.0,88119.0,0.3614]
[1742932792871,0.08556,88121.0,88120.0,0.04561035]
[1742932793166,0.1990267,88121.0,88120.0,0.00064]
[1742932793558,0.1990267,88121.0,88111.0,0.00045397]
[1742932793559,0.1422935,88121.0,88111.0,0.00045397]
[1742932793766,0.1134782,88112.0,88111.0,0.00113397]
[1742932793971,0.1134782,88112.0,88111.0,0.00045397]
[1742932793972,0.2259582,88112.0,88111.0,0.00045397]
[1742932794171,0.00076,88112.0,88111.0,0.00045397]
[1742932794769,0.1964382,88112.0,88111.0,0.00045397]
[1742932796766,0.5572382,88112.0,88111.0,0.00045397]
[1742932797373,0.08296,88112.0,88111.0,0.00045397]
[1742932797561,0.04096,88112.0,88111.0,0.11453347]
[1742932797761,8e-05,88114.0,88111.0,0.04667454]
[1742932797961,0.0008,88114.0,88113.0,0.1134759]
[1742932798171,0.0008,88114.0,88113.0,0.344077]
[1742932798373,8e-05,88117.0,88113.0,0.344077]
[1742932798374,8e-05,88117.0,88116.0,0.1134731]
[1742932798572,0.13526665,88120.0,88119.0,0.1134692]
[1742932798874,0.13590665,88120.0,88119.0,0.42980022]
[1742932799073,0.13590665,88120.0,88119.0,1.92980022]
[1742932799266,0.2029747,88132.0,88122.0,0.1134654]
[1742932799466,0.2029747,88132.0,88128.0,0.3608]
[1742932799766,0.2029747,88132.0,88128.0,0.00064]
[1742932799767,0.0858,88131.0,88128.0,0.00064]
[1742932799966,0.3608,88129.0,88119.0,1.5]
[1742932800166,0.0821,88128.0,88119.0,0.00064]
[1742932800470,0.1395094,88128.0,88119.0,0.00064]
[1742932800667,0.44358,88128.0,88119.0,0.00064]
[1742932800970,0.5569981,88128.0,88119.0,0.04404]
[1742932801166,0.44354,88128.0,88119.0,0.04404]
[1742932801668,0.08374,88128.0,88119.0,0.04404]
[1742932801870,0.1965589,88128.0,88119.0,0.04404]
[1742932802071,0.08374,88128.0,88119.0,0.04404]
[1742932802770,0.1971985,88128.0,88119.0,0.04404]
[1742932802970,0.1134609,88126.0,88119.0,0.04404]
[1742932803171,0.0869,88125.0,88119.0,0.00064]
[1742932803376,0.08758,88125.0,88119.0,0.00064]
[1742932803969,0.08758,88125.0,88119.0,0.36144]
[1742932804171,0.08762,88125.0,88119.0,0.36144]
[1742932804867,0.08762,88125.0,88120.0,0.0401]
[1742932805091,8e-05,88127.0,88124.0,0.0567307]
[1742932805274,0.0436,88158.0,88125.0,0.15764803]
[1742932805473,0.0004,88168.0,88158.0,0.113419]
[1742932805675,0.19863716,88159.0,88158.0,1.16724]
[1742932805868,0.19863716,88159.0,88158.0,0.87067351]
[1742932806074,0.31213496,88159.0,88158.0,0.82508]
[1742932806480,0.19871716,88159.0,88158.0,0.94593205]
[1742932806680,0.27101067,88165.0,88158.0,1.37593205]
[1742932806870,0.27101067,88165.0,88161.0,0.3608]
[1742932807175,0.23131348,88165.0,88164.0,0.1134113]
[1742932807382,0.00017019,88167.0,88166.0,0.1134087]
[1742932807676,0.20310707,88194.0,88183.0,0.1133869]
[1742932807880,0.20310707,88194.0,88183.0,0.36232]
[1742932808072,0.25979347,88194.0,88183.0,0.36232]
[1742932808272,0.1133763,88192.0,88183.0,0.41542146]
[1742932808473,0.25979347,88194.0,88183.0,0.41542146]
[1742932808474,0.20310707,88194.0,88183.0,0.91880836]
[1742932808667,0.00017019,88192.0,88183.0,0.75774]
[1742932809083,0.00017019,88192.0,88191.0,0.3608]
[1742932809284,0.0419,88206.0,88191.0,1.662688]
[1742932809472,0.0436,88212.0,88202.0,0.3608]
[1742932809672,0.0419,88211.0,88203.0,0.1587]
[1742932809874,0.0419,88211.0,88203.0,0.2839]
[1742932810176,0.0436,88210.0,88204.0,0.11476]
[1742932810374,0.0436,88210.0,88204.0,0.34476]
[1742932810572,0.0436,88210.0,88204.0,0.23]
[1742932810777,0.1133663,88199.0,88198.0,0.00017009]
[1742932810977,0.3608,88199.0,88198.0,0.00017009]
[1742932811178,0.001,88211.0,88198.0,0.20017009]
[1742932811369,0.001,88211.0,88206.0,0.3608]
[1742932811575,0.004,88210.0,88208.0,0.1133544]
[1742932811771,0.004,88210.0,88208.0,0.12175375]
[1742932811973,0.004,88210.0,88209.0,0.0806]
[1742932812278,0.004,88210.0,88209.0,0.0439]
[1742932812481,0.0566775,88208.0,88201.0,0.11584]
[1742932812776,0.0842,88209.0,88205.0,0.3608]
[1742932812983,0.0842,88209.0,88206.0,0.0445]
[1742932813178,0.0842,88209.0,88206.0,0.3112]
[1742932813777,0.0842,88209.0,88206.0,0.23]
[1742932813979,0.1133663,88199.0,88196.0,0.11604]
[1742932814175,0.1133663,88199.0,88194.0,0.11616]
[1742932814375,0.1408813,88202.0,88191.0,0.94033356]
[1742932814684,0.0842,88202.0,88192.0,0.0445]
[1742932815084,0.1133657,88200.0,88192.0,0.0445]
[1742932815383,0.0819,88199.0,88198.0,0.00169009]
[1742932816090,0.1952663,88199.0,88198.0,0.00169009]
[1742932816881,0.1972663,88199.0,88198.0,0.00169009]
[1742932817086,0.0839,88199.0,88198.0,0.00169009]
[1742932817476,0.1972663,88199.0,88198.0,0.00169009]
[1742932817983,0.1992663,88199.0,88198.0,0.00169009]
[1742932818184,0.1133959,88176.0,88175.0,0.11637364]
[1742932818375,0.11399591,88176.0,88175.0,0.11637364]
[1742932818580,0.11399591,88176.0,88175.0,0.00045364]
[1742932819174,0.19619591,88176.0,88175.0,0.00045364]
[1742932819984,0.08280001,88176.0,88175.0,0.00045364]
[1742932820180,0.19919591,88176.0,88175.0,0.00045364]
[1742932820372,0.08580001,88176.0,88175.0,0.00045364]
[1742932820780,0.08780001,88176.0,88175.0,0.00045364]
[1742932821182,0.01060001,88176.0,88175.0,0.64173084]
[1742932821387,0.00017009,88184.0,88183.0,0.1133869]
[1742932821591,0.00017009,88184.0,88183.0,0.7455069]
[1742932821882,0.0834,88206.0,88199.0,0.1133663]
[1742932822078,0.00164001,88200.0,88199.0,0.8618863]
[1742932822272,0.0004,88216.0,88199.0,0.63208]
[1742932822488,0.00164001,88216.0,88200.0,0.11672]
[1742932822690,0.0566742,88213.0,88200.0,0.11796]
[1742932822982,0.1133577,88206.0,88201.0,0.11688]
[1742932823281,0.0406,88205.0,88204.0,0.1133599]
[1742932823485,0.04184001,88205.0,88204.0,0.1145999]
[1742932823782,0.0406,88205.0,88204.0,0.00124]
[1742932824690,0.4024,88205.0,88204.0,0.00124]
[1742932824882,0.4044,88205.0,88204.0,0.00124]
[1742932825185,0.04420001,88205.0,88204.0,0.1145999]
[1742932825385,0.0436,88205.0,88204.0,0.3445999]
[1742932825578,0.0436,88205.0,88204.0,0.35635038]
[1742932828790,0.0436,88205.0,88204.0,0.23124]
[1742932828984,0.04428,88205.0,88204.0,0.00124]
[1742932829183,0.1576386,88205.0,88204.0,0.00124]
[1742932829480,0.25138753,88205.0,88204.0,0.00124]
[1742932829684,0.25115685,88205.0,88204.0,0.00124]
[1742932829992,0.2423386,88205.0,88204.0,0.00124]
[1742932830591,0.13779943,88205.0,88204.0,0.00124]
[1742932831098,0.13779943,88205.0,88199.0,0.00017009]
[1742932831387,0.3608,88200.0,88199.0,0.11477639]
[1742932831590,0.36204001,88200.0,88199.0,0.00141009]
[1742932831782,0.36204001,88200.0,88199.0,0.00017009]
[1742932831983,0.36204001,88200.0,88199.0,0.00141009]
[1742932832192,0.3708408,88200.0,88199.0,0.00141009]
[1742932832396,0.3708408,88200.0,88199.0,0.00017009]
[1742932832694,0.3708408,88200.0,88199.0,0.00141009]
[1742932833081,0.3708408,88200.0,88199.0,0.00017009]
[1742932834295,0.37824188,88200.0,88199.0,0.00017009]
[1742932834487,0.38024188,88200.0,88199.0,0.00017009]
[1742932834686,0.38024188,88200.0,88199.0,0.11353639]
[1742932834989,0.38024188,88200.0,88199.0,0.11477639]
[1742932835580,0.01944188,88200.0,88199.0,0.47113639]
[1742932835798,0.00940108,88200.0,88199.0,0.51273639]
[1742932836098,0.0808,88205.0,88204.0,0.1133599]
[1742932836394,0.09100949,88205.0,88204.0,0.1146799]
[1742932837393,0.09500949,88205.0,88204.0,0.1146799]
[1742932838286,0.1994786,88205.0,88204.0,0.00132]
[1742932838488,0.0566809,88203.0,88199.0,0.00017009]
[1742932838693,0.3608,88200.0,88199.0,0.00017009]
[1742932838889,0.37779198,88200.0,88199.0,0.00017009]
[1742932839797,0.46239794,88200.0,88199.0,0.00017009]
[1742932840687,0.10159794,88200.0,88199.0,0.11353639]
[1742932840887,0.10159794,88200.0,88199.0,0.15999786]
[1742932841494,0.09412778,88200.0,88199.0,0.15999786]
[1742932842301,0.09412778,88200.0,88199.0,0.04663156]
[1742932842613,0.09412778,88200.0,88199.0,0.15999786]
[1742932842895,0.09412778,88200.0,88199.0,0.08993156]
[1742932843695,0.10901783,88200.0,88199.0,0.08993156]
[1742932844095,0.10901783,88200.0,88199.0,0.04663156]
[1742932844587,0.10949646,88200.0,88199.0,0.04663156]
[1742932844789,0.11731029,88200.0,88199.0,0.00101009]
[1742932846104,0.11731029,88200.0,88199.0,0.11693009]
[1742932846893,0.11731029,88200.0,88199.0,0.43217952]
[1742932847090,0.11671028,88200.0,88199.0,0.47427952]
[1742932847295,8e-05,88203.0,88202.0,0.1133625]
[1742932847492,0.00064,88203.0,88202.0,0.42993393]
[1742932847698,0.00064,88203.0,88202.0,0.50783393]
[1742932848096,0.00064,88203.0,88202.0,0.51031143]
[1742932848298,0.00064,88203.0,88202.0,0.47447143]
[1742932848601,0.00164,88203.0,88202.0,0.31783393]
[1742932850002,0.00164,88203.0,88202.0,0.36053393]
[1742932850195,0.00264,88203.0,88202.0,0.36053393]
[1742932851491,0.00264,88203.0,88202.0,0.24473393]
[1742932851804,0.00264,88203.0,88202.0,0.31759393]
[1742932852302,0.00264,88203.0,88202.0,0.36049393]
[1742932855398,0.00264,88203.0,88202.0,3.36049393]
[1742932855594,0.002,88203.0,88202.0,3.36049393]
[1742932862105,0.002,88203.0,88202.0,3.20203393]
[1742932862305,0.002,88203.0,88202.0,3.04657143]
[1742932862705,0.1153612,88203.0,88202.0,3.00088]
[1742932862904,0.11596121,88203.0,88202.0,3.00088]
[1742932863099,0.00260001,88203.0,88202.0,3.00088]
[1742932863299,0.0831,88203.0,88202.0,3.00088]
[1742932863502,0.08394,88203.0,88202.0,3.00088]
[1742932863902,0.1964612,88203.0,88202.0,3.00088]
[1742932864212,0.20465306,88203.0,88202.0,3.00088]
[1742932865605,0.09129186,88203.0,88202.0,3.1142425]
[1742932865807,0.09045186,88203.0,88202.0,3.1142425]
[1742932866201,0.09045186,88203.0,88202.0,3.1959425]
[1742932866397,0.0831,88203.0,88202.0,4.98168278]
[1742932866608,0.0831,88203.0,88202.0,3.48168278]
[1742932867609,0.0831,88203.0,88202.0,3.28662028]
[1742932867805,0.0831,88203.0,88202.0,3.00088]
[1742932868006,0.09275159,88203.0,88202.0,3.00088]
[1742932868311,0.09191159,88203.0,88202.0,3.00088]
[1742932868613,0.09283159,88203.0,88202.0,3.00088]
[1742932869108,0.21371693,88203.0,88202.0,3.00088]
[1742932869902,0.20490534,88203.0,88202.0,3.00088]
[1742932870511,0.09154414,88203.0,88202.0,3.00088]
[1742932870712,0.3608,88222.0,88215.0,0.1133458]
[1742932871013,0.00132,88216.0,88215.0,0.1141858]
[1742932871309,0.0004,88216.0,88215.0,0.1141858]
[1742932871511,0.0004,88216.0,88215.0,0.1961858]
[1742932871710,0.0004,88216.0,88215.0,0.08284]
[1742932871711,0.47542451,88216.0,88215.0,0.08284]
[1742932871899,0.36608001,88216.0,88200.0,0.11476]
[1742932872105,0.36608001,88216.0,88194.0,0.20317136]
[1742932872106,0.1133612,88203.0,88202.0,3.00084]
[1742932872916,0.1142012,88203.0,88202.0,3.00084]
[1742932874118,0.2391012,88203.0,88202.0,3.00084]
[1742932874720,0.2411012,88203.0,88202.0,3.00084]
[1742932878909,0.1133843,88185.0,88170.0,0.01167538]
[1742932879230,0.113392,88179.0,88172.0,0.0406]
[1742932879423,0.11399201,88179.0,88178.0,0.27149515]
[1742932880411,0.10999201,88179.0,88178.0,0.27149515]
[1742932881012,0.10999201,88179.0,88178.0,0.27449515]
[1742932881212,0.10999201,88179.0,88178.0,0.27749515]
[1742932882217,0.10999201,88179.0,88178.0,0.0066]
[1742932882423,0.10999201,88179.0,88178.0,0.006]
[1742932883523,0.1134023,88171.0,88170.0,0.00017009]
[1742932883725,0.1134152,88161.0,88159.0,0.00045372]
[1742932883926,0.58909521,88161.0,88160.0,0.27149515]
[1742932884516,0.67249521,88161.0,88160.0,0.27149515]
[1742932884922,0.67249521,88161.0,88160.0,0.27749515]
[1742932886223,0.67249521,88161.0,88160.0,0.20890425]
[1742932886423,0.67249521,88161.0,88160.0,0.0066]
[1742932886626,0.67749521,88161.0,88160.0,0.006]
[1742932887130,0.1134165,88160.0,88159.0,0.00045372]
[1742932887317,0.11401651,88160.0,88159.0,0.00045372]
[1742932887520,0.20181651,88160.0,88159.0,0.00045372]
[1742932888234,0.1134255,88153.0,88152.0,0.00017009]
[1742932888418,0.0567162,88148.0,88144.0,0.047]
[1742932888621,0.4742358,88145.0,88144.0,0.047]
[1742932888924,0.4748758,88145.0,88144.0,0.047]
[1742932889125,0.4748758,88145.0,88144.0,0.0907]
[1742932889828,0.0567213,88140.0,88136.0,0.00017009]
[1742932890025,0.4742461,88137.0,88136.0,0.00077009]
[1742932890231,0.58904611,88137.0,88136.0,0.00077009]
[1742932891734,0.58904611,88137.0,88136.0,0.00017009]
[1742932893223,0.1134576,88128.0,88114.0,0.0017022]
[1742932893525,0.47485761,88128.0,88118.0,0.0473]
[1742932894231,0.1134692,88119.0,88118.0,0.0473]
[1742932894427,0.58882921,88119.0,88118.0,0.0473]
[1742932894629,0.58682921,88119.0,88118.0,0.0473]
[1742932895119,0.67822921,88119.0,88118.0,0.0473]
[1742932896245,0.1134744,88115.0,88114.0,0.0017022]
[1742932896424,0.47487441,88115.0,88114.0,0.0017022]
[1742932896729,0.1134782,88112.0,88111.0,0.00045397]
[1742932896936,0.11007821,88112.0,88111.0,0.00045397]
[1742932897526,0.10907821,88112.0,88111.0,0.00045397]
[1742932898229,0.10907821,88112.0,88111.0,0.00145397]
[1742932901830,0.10907821,88112.0,88111.0,7e-08]
[1742932902238,0.11007821,88112.0,88111.0,7e-08]
[1742932903130,0.1134924,88101.0,88100.0,0.1]
[1742932903331,0.58845241,88101.0,88100.0,0.1006]
[1742932903736,0.58845241,88101.0,88100.0,0.1]
[1742932904039,0.36140001,88101.0,88100.0,0.1]
[1742932904239,0.47489241,88101.0,88100.0,0.1006]
[1742932904436,0.47689241,88101.0,88100.0,0.1006]
[1742932904737,0.29300001,88101.0,88100.0,0.5456937]
[1742932904937,0.4175316,88124.0,88108.0,0.1134834]
[1742932905240,0.3608,88113.0,88109.0,0.0567409]
[1742932905447,0.1134924,88101.0,88100.0,0.1]
[1742932905637,0.4750124,88101.0,88100.0,0.10064]
[1742932905837,0.4750124,88101.0,88100.0,0.10016]
[1742932906032,0.36152,88101.0,88100.0,0.2134937]
[1742932906245,0.36152,88101.0,88100.0,0.2140937]
[1742932906736,0.36152,88101.0,88100.0,0.1457]
[1742932906934,0.36152,88101.0,88100.0,0.2591937]
[1742932907128,0.36152,88101.0,88100.0,0.1457]
[1742932908141,0.36152,88101.0,88100.0,0.1874]
[1742932908343,0.36252,88101.0,88100.0,0.2321]
[1742932909635,0.36252,88101.0,88100.0,0.2311]
[1742932909838,0.36452,88101.0,88100.0,0.2311]
[1742932910239,0.36252,88101.0,88100.0,0.2311]
[1742932910439,0.36352,88101.0,88100.0,0.2311]
[1742932911647,0.36352,88101.0,88100.0,0.3445937]
[1742932912453,0.36352,88101.0,88100.0,0.6145937]
[1742932913942,0.36252,88101.0,88100.0,0.6145937]
[1742932914247,0.36352,88101.0,88100.0,0.6145937]
[1742932919247,8e-05,88105.0,88104.0,0.1134886]
[1742932919447,0.0004,88120.0,88119.0,0.1134692]
[1742932919749,0.0012,88120.0,88119.0,0.00076]
[1742932919949,0.00116,88120.0,88119.0,0.1142292]
[1742932920152,0.0004,88120.0,88119.0,0.1142292]
[1742932920342,0.0004,88120.0,88119.0,0.2058292]
[1742932920540,0.1138679,88120.0,88119.0,0.09236]
[1742932920745,0.1138679,88120.0,88098.0,0.3608]
[1742932920746,0.1134782,88112.0,88111.0,0.00017019]
[1742932921051,0.1141182,88112.0,88111.0,0.00017019]
[1742932921246,0.2515182,88112.0,88111.0,0.00017019]
[1742932921450,0.2515182,88112.0,88111.0,0.00093019]
[1742932921639,0.2515182,88112.0,88111.0,0.00017019]
[1742932921950,0.14204,88112.0,88111.0,0.00017019]
[1742932922252,0.14204,88112.0,88111.0,0.09831019]
[1742932922552,0.2555182,88112.0,88111.0,0.09831019]
[1742932922747,0.14204,88112.0,88111.0,0.21178969]
[1742932923141,0.14204,88112.0,88111.0,0.11448969]
[1742932923346,0.2555182,88112.0,88111.0,0.00101019]
[1742932923660,0.2555182,88112.0,88111.0,0.00017019]
[1742932924046,0.2595182,88112.0,88111.0,0.00017019]
[1742932924655,0.2595182,88112.0,88111.0,0.00093019]
[1742932924853,0.2595182,88112.0,88111.0,0.00017019]
[1742932926145,0.1134924,88101.0,88100.0,0.1]
[1742932926344,0.1134924,88101.0,88100.0,0.10008]
[1742932926345,0.47489241,88101.0,88100.0,0.10008]
[1742932926544,0.57029241,88101.0,88100.0,0.10008]
[1742932926944,0.57029241,88101.0,88100.0,0.10076]
[1742932927146,0.57029241,88101.0,88100.0,0.1]
[1742932927456,0.57129241,88101.0,88100.0,0.1]
[1742932927953,0.57129241,88101.0,88100.0,0.0265]
[1742932928456,0.57229241,88101.0,88100.0,0.0265]
[1742932930247,0.57229241,88101.0,88095.0,0.00053405]
[1742932930248,0.1134989,88096.0,88095.0,0.00053405]
[1742932930450,0.5883389,88096.0,88095.0,0.00045405]
[1742932930750,0.1135195,88080.0,88079.0,0.45176255]
[1742932930952,0.1135195,88080.0,88079.0,0.49838464]
[1742932931152,0.1142795,88080.0,88079.0,0.38486634]
[1742932931552,0.1142795,88080.0,88079.0,0.33908425]
[1742932932647,0.2491795,88080.0,88079.0,0.33908425]
[1742932932951,0.2491795,88080.0,88079.0,0.00129414]
[1742932933149,0.2491795,88080.0,88079.0,0.00045414]
[1742932934152,0.2491795,88080.0,88079.0,0.00245414]
[1742932935552,0.1135375,88066.0,88065.0,0.33779011]
[1742932935749,0.8351375,88066.0,88065.0,0.34996253]
[1742932935944,0.8358975,88066.0,88065.0,0.33855011]
[1742932936461,0.9776975,88066.0,88065.0,0.33855011]
[1742932937051,0.9776975,88066.0,88065.0,0.00076]
[1742932937360,0.1135401,88064.0,88063.0,0.00045422]
[1742932937557,0.11414011,88064.0,88063.0,0.00045422]
[1742932938647,0.11814011,88064.0,88063.0,0.00045422]
[1742932940156,0.23118011,88064.0,88063.0,0.00045422]
[1742932942051,0.32558011,88064.0,88063.0,0.00045422]
[1742932942452,0.68638011,88064.0,88063.0,0.00045422]
[1742932948562,0.1135504,88056.0,88055.0,0.0971]
[1742932948767,0.4749904,88056.0,88055.0,0.0971]
[1742932948950,0.5217904,88056.0,88055.0,0.0971]
[1742932950261,0.5731904,88056.0,88055.0,0.0971]
[1742932950850,0.58492337,88056.0,88055.0,0.0971]
[1742932951054,0.58492337,88056.0,88053.0,8e-05]
[1742932951055,0.1135814,88032.0,88029.0,0.00856751]
[1742932951262,0.4743814,88032.0,88031.0,0.00121438]
[1742932951462,0.4752214,88032.0,88031.0,0.00121438]
[1742932951974,0.4752214,88032.0,88031.0,0.00129438]
[1742932952156,0.4752214,88032.0,88031.0,0.00121438]
[1742932952671,0.4762214,88032.0,88031.0,0.00121438]
[1742932952858,0.5744214,88032.0,88031.0,0.00121438]
[1742932953052,0.5744214,88032.0,88031.0,0.09991438]
[1742932953253,0.5259214,88032.0,88031.0,0.09991438]
[1742932953458,0.4752214,88032.0,88031.0,0.09991438]
[1742932957058,0.4752214,88032.0,88031.0,0.09915438]
[1742932957670,0.5734214,88032.0,88031.0,0.09915438]
[1742932960465,0.5754214,88032.0,88031.0,0.09915438]
[1742932961557,0.5754214,88032.0,88031.0,0.00045438]
[1742932963465,0.4772214,88032.0,88031.0,0.00045438]
[1742932966559,0.5251214,88032.0,88031.0,0.00045438]
[1742932966769,0.5745214,88032.0,88031.0,0.00045438]
[1742932969676,0.9821214,88032.0,88031.0,0.00045438]
[1742932969876,0.113602,88016.0,88002.0,0.27028166]
[1742932970191,0.58804201,88016.0,88004.0,0.01177503]
[1742932970679,0.68724201,88016.0,88008.0,0.27028166]
[1742932970878,0.68724201,88016.0,88015.0,0.00121447]
[1742932971181,0.68924201,88016.0,88015.0,0.00121447]
[1742932971675,0.70060045,88016.0,88015.0,0.00121447]
[1742932972779,0.70360045,88016.0,88015.0,0.00121447]
[1742932974270,0.70360045,88016.0,88015.0,0.00045447]
[1742932974978,0.59056045,88016.0,88015.0,0.00045447]
[1742932975184,0.36640001,88016.0,88015.0,0.00045447]
[1742932975370,0.48000201,88016.0,88015.0,0.00045447]
[1742932978483,0.52960201,88016.0,88015.0,0.00045447]
[1742932980272,0.58260201,88016.0,88015.0,0.00045447]
[1742932981382,0.1136149,88006.0,88005.0,0.1016]
[1742932981574,0.47501491,88006.0,88005.0,0.10236]
[1742932981769,0.57931491,88006.0,88005.0,0.10236]
[1742932983379,0.36140001,88006.0,88005.0,0.10236]
[1742932983577,0.00060001,88006.0,88005.0,0.10236]
[1742932983779,0.00017039,88014.0,88005.0,0.10236]
[1742932983978,0.1136068,88013.0,88005.0,0.10236]
[1742932984180,0.3608,88006.0,88005.0,0.10236]
[1742932984374,0.36156,88006.0,88005.0,0.10236]
[1742932984982,0.3616,88006.0,88005.0,0.10236]
[1742932986292,0.4752149,88006.0,88005.0,0.10236]
[1742932987287,0.5763149,88006.0,88005.0,0.10236]
[1742932991491,0.9371149,88006.0,88005.0,0.10236]
[1742932992889,0.9371149,88006.0,88005.0,0.1016]
[1742932994082,0.1136214,88001.0,88000.0,0.10877956]
[1742932994290,0.1136214,88001.0,88000.0,0.10953956]
[1742932994291,0.1143814,88001.0,88000.0,0.10953956]
[1742932995293,0.2167814,88001.0,88000.0,0.20703956]
[1742932997092,0.2167814,88001.0,88000.0,0.15773956]
[1742932997298,0.2167814,88001.0,88000.0,0.10877956]
[1742932997495,0.2167814,88001.0,88000.0,0.10869956]
[1742932998593,0.0568143,87996.0,87992.0,8e-05]
[1742932998790,0.0568143,87996.0,87992.0,0.00088]
[1742932998791,0.4744317,87993.0,87992.0,0.00088]
[1742932998987,0.4752717,87993.0,87992.0,0.0008]
[1742932999190,0.5719717,87993.0,87992.0,0.0008]
[1742933000797,0.5729717,87993.0,87992.0,0.0008]
[1742933001498,0.5739717,87993.0,87992.0,0.0008]
[1742933001685,0.5739717,87993.0,87983.0,0.20445446]
[1742933001686,0.0568178,87990.0,87983.0,0.20445446]
[1742933001883,0.4744433,87984.0,87983.0,0.20521446]
[1742933002093,0.4752033,87984.0,87983.0,0.20521446]
[1742933002491,0.5734033,87984.0,87983.0,0.20521446]
[1742933003695,0.5734033,87984.0,87983.0,0.21382644]
[1742933005303,0.58512264,87984.0,87983.0,0.21382644]
[1742933005504,0.58512264,87984.0,87983.0,0.00982661]
[1742933005700,0.58512264,87984.0,87983.0,0.00906661]
[1742933007096,0.5734033,87984.0,87983.0,0.00906661]
[1742933009105,0.00076,87984.0,87983.0,0.39271121]
[1742933009305,0.1136334,87992.0,87987.0,0.1136386]
[1742933009503,0.00084,87992.0,87988.0,0.3382379]
[1742933009707,0.00084,87992.0,87988.0,0.47536]
[1742933009907,0.1136369,87989.0,87988.0,0.47536]
[1742933010310,0.1143969,87989.0,87988.0,0.47536]
[1742933010703,0.00076,87989.0,87988.0,0.47536]
[1742933011000,0.00076,87989.0,87988.0,0.5889982]
[1742933012716,0.00076,87989.0,87988.0,0.36356]
[1742933012904,0.1143969,87989.0,87988.0,0.36356]
[1742933013104,0.00076,87989.0,87988.0,0.4771982]
[1742933013713,0.00017039,87995.0,87994.0,0.1136304]
[1742933013909,0.00017039,87995.0,87994.0,0.1143904]
[1742933014215,0.00017039,87995.0,87994.0,0.4953904]
[1742933018920,0.00017039,87995.0,87994.0,0.4963904]
[1742933021922,0.36097039,87995.0,87994.0,0.4963904]
[1742933022116,0.36173039,87995.0,87994.0,0.4963904]
[1742933025815,0.36173039,87995.0,87994.0,0.6076304]
[1742933026310,0.00093039,87995.0,87994.0,0.6076304]
[1742933027726,0.05743039,87995.0,87994.0,0.6076304]
[1742933028626,0.05743039,87995.0,87994.0,0.4963904]
[1742933028823,0.53185949,87995.0,87994.0,0.00176]
[1742933029024,0.59025949,87995.0,87994.0,0.00176]
[1742933029328,0.64895949,87995.0,87994.0,0.001]
[1742933030328,0.64995949,87995.0,87994.0,0.001]
[1742933031014,0.64995949,87995.0,87994.0,0.0018]
[1742933031214,0.65095949,87995.0,87994.0,0.0008]
[1742933032130,0.76223949,87995.0,87994.0,0.0008]
[1742933034326,0.65095949,87995.0,87994.0,0.1144304]
[1742933034734,0.65095949,87995.0,87994.0,0.0008]
[1742933034929,0.113633,87992.0,87991.0,0.1136337]
[1742933035124,0.113633,87992.0,87987.0,8e-05]
[1742933035125,0.00068,87992.0,87987.0,8e-05]
[1742933035326,0.1136382,87988.0,87987.0,8e-05]
[1742933035633,0.1143982,87988.0,87987.0,0.00084]
[1742933035827,0.2328982,87988.0,87987.0,0.00084]
[1742933036229,0.2328982,87988.0,87987.0,8e-05]
[1742933038024,0.2328982,87988.0,87987.0,0.00108]
[1742933043636,0.2328982,87988.0,87987.0,0.00184]
[1742933044537,0.11926,87988.0,87987.0,0.2308795]
[1742933044730,0.00076,87988.0,87987.0,0.2308795]
[1742933045134,0.00076,87988.0,87987.0,0.4908795]
[1742933047433,0.1143982,87988.0,87987.0,0.4908795]
[1742933047843,0.2341982,87988.0,87987.0,0.37724]
[1742933048147,0.2341982,87988.0,87987.0,0.4908795]
[1742933048537,0.12056,87988.0,87987.0,0.4908795]
[1742933049344,0.06166,87988.0,87987.0,0.4908795]
[1742933049553,0.00076,87988.0,87987.0,0.4908795]